[Event "Early-Titled-Tuesday-Blitz-March-05-2024"]
[Site "Chess.com"]
[Date "2024.03.05"]
[Round "5"]
[White "ClauSanLuis"]
[Black "tolimachess"]
[Result "1-0"]
[WhiteElo "2315"]
[BlackElo "2415"]
[TimeControl "180+1"]
[EndTime "8:57:06 PST"]
[Termination "ClauSanLuis won by checkmate"]

1. d4 {[%clk 0:02:52.8]} 1... d6 {[%clk 0:02:56.3]} 2. Bg5 {[%clk 0:02:52.8]}
2... Nf6 {[%clk 0:02:55.3]} 3. Bxf6 {[%clk 0:02:52]} 3... exf6 {[%clk
0:02:52.6]} 4. e3 {[%clk 0:02:52.5]} 4... d5 {[%clk 0:02:48.9]} 5. Bd3 {[%clk
0:02:52]} 5... Bd6 {[%clk 0:02:47.9]} 6. g4 {[%clk 0:02:50.6]} 6... c5 {[%clk
0:02:25.6]} 7. c3 {[%clk 0:02:49.8]} 7... Nc6 {[%clk 0:02:19.9]} 8. Ne2 {[%clk
0:02:45.6]} 8... Qb6 {[%clk 0:02:18.8]} 9. Nd2 {[%clk 0:02:22.4]} 9... Bd7
{[%clk 0:02:10.6]} 10. h3 {[%clk 0:02:03.7]} 10... O-O {[%clk 0:02:08.5]} 11.
Qc2 {[%clk 0:01:57.5]} 11... h6 {[%clk 0:01:59.2]} 12. Nf3 {[%clk 0:01:51]}
12... Rac8 {[%clk 0:01:57.6]} 13. Kf1 {[%clk 0:01:32.7]} 13... Rfe8 {[%clk
0:01:53.8]} 14. Kg2 {[%clk 0:01:32]} 14... cxd4 {[%clk 0:01:48.7]} 15. Bh7+
{[%clk 0:01:20.5]} 15... Kh8 {[%clk 0:01:47.5]} 16. exd4 {[%clk 0:01:14.7]}
16... Rxe2 {[%clk 0:01:44]} 17. Qxe2 {[%clk 0:01:13.5]} 17... Kxh7 {[%clk
0:01:43.8]} 18. Nh4 {[%clk 0:01:09.8]} 18... Re8 {[%clk 0:01:39.7]} 19. Qf3
{[%clk 0:01:09.6]} 19... Kg8 {[%clk 0:01:31.1]} 20. b3 {[%clk 0:01:05.4]} 20...
Ne7 {[%clk 0:01:25.9]} 21. Rae1 {[%clk 0:00:59.3]} 21... Be6 {[%clk 0:01:20.9]}
22. Nf5 {[%clk 0:00:57.2]} 22... Qd8 {[%clk 0:01:13.7]} 23. Ne3 {[%clk 0:00:48]}
23... Bb8 {[%clk 0:01:10.5]} 24. h4 {[%clk 0:00:47.5]} 24... Qd7 {[%clk
0:01:04.2]} 25. g5 {[%clk 0:00:46.7]} 25... Ng6 {[%clk 0:00:49]} 26. gxh6 {[%clk
0:00:40.3]} 26... Nf4+ {[%clk 0:00:49.4]} 27. Kf1 {[%clk 0:00:39.6]} 27... g6
{[%clk 0:00:45.3]} 28. Ng2 {[%clk 0:00:37.2]} 28... Nxg2 {[%clk 0:00:43]} 29.
Kxg2 {[%clk 0:00:37]} 29... Kh7 {[%clk 0:00:42.4]} 30. Qxf6 {[%clk 0:00:36]}
30... Qe7 {[%clk 0:00:33.1]} 31. Qg7# {[%clk 0:00:35]} 1-0

[Event "Early-Titled-Tuesday-Blitz-March-05-2024"]
[Site "Chess.com"]
[Date "2024.03.05"]
[Round "5"]
[White "XDPS"]
[Black "wonderfultime"]
[Result "0-1"]
[WhiteElo "2906"]
[BlackElo "3038"]
[TimeControl "180+1"]
[EndTime "8:57:07 PST"]
[Termination "wonderfultime won by resignation"]

1. d4 {[%clk 0:02:58.2]} 1... d5 {[%clk 0:02:55.8]} 2. Bf4 {[%clk 0:02:53.4]}
2... Nf6 {[%clk 0:02:55.6]} 3. e3 {[%clk 0:02:53.4]} 3... c5 {[%clk 0:02:56.2]}
4. Nf3 {[%clk 0:02:52.8]} 4... Qb6 {[%clk 0:02:56.6]} 5. b3 {[%clk 0:02:49.9]}
5... Nc6 {[%clk 0:02:55.4]} 6. c3 {[%clk 0:02:47.2]} 6... Bg4 {[%clk 0:02:55.2]}
7. Nbd2 {[%clk 0:02:47.2]} 7... e6 {[%clk 0:02:54.7]} 8. Bd3 {[%clk 0:02:47.2]}
8... Be7 {[%clk 0:02:53.3]} 9. O-O {[%clk 0:02:47.4]} 9... O-O {[%clk 0:02:54]}
10. Qb1 {[%clk 0:02:45.8]} 10... cxd4 {[%clk 0:02:47.6]} 11. cxd4 {[%clk
0:02:32.1]} 11... Nb4 {[%clk 0:02:40.8]} 12. Be2 {[%clk 0:02:06]} 12... Bf5
{[%clk 0:02:18.4]} 13. Qb2 {[%clk 0:02:06]} 13... Nc2 {[%clk 0:02:08.3]} 14. Nh4
{[%clk 0:01:27.8]} 14... Ba3 {[%clk 0:01:53.7]} 15. Qb1 {[%clk 0:01:28.2]} 15...
Nxd4 {[%clk 0:01:04.3]} 16. Nxf5 {[%clk 0:01:28.3]} 16... Nxe2+ {[%clk
0:01:03.4]} 17. Kh1 {[%clk 0:01:28.6]} 17... exf5 {[%clk 0:01:04.3]} 18. Be5
{[%clk 0:01:18.6]} 18... Ng4 {[%clk 0:00:56.5]} 19. Qxf5 {[%clk 0:01:11.5]}
19... Qe6 {[%clk 0:00:50.9]} 20. Qf3 {[%clk 0:00:54.3]} 20... Nxe5 {[%clk
0:00:44.1]} 21. Qxe2 {[%clk 0:00:54.9]} 21... Rac8 {[%clk 0:00:44.7]} 22. Qb5
{[%clk 0:00:37.5]} 22... Rc2 {[%clk 0:00:38]} 23. Rad1 {[%clk 0:00:36.6]} 23...
Qc6 {[%clk 0:00:32.6]} 24. Qa5 {[%clk 0:00:36.5]} 24... Bc5 {[%clk 0:00:25]} 0-1

[Event "Early-Titled-Tuesday-Blitz-March-05-2024"]
[Site "Chess.com"]
[Date "2024.03.05"]
[Round "5"]
[White "Firouzja2003"]
[Black "Fandorine"]
[Result "1-0"]
[WhiteElo "3225"]
[BlackElo "2940"]
[TimeControl "180+1"]
[EndTime "8:57:10 PST"]
[Termination "Firouzja2003 won by resignation"]

1. e4 {[%clk 0:03:00.9]} 1... e5 {[%clk 0:02:58.7]} 2. Nf3 {[%clk 0:03:00.9]}
2... Nc6 {[%clk 0:02:59.2]} 3. Bb5 {[%clk 0:03:00.3]} 3... a6 {[%clk 0:02:59.4]}
4. Ba4 {[%clk 0:03:00.7]} 4... Nf6 {[%clk 0:02:59.6]} 5. O-O {[%clk 0:03:01.3]}
5... Be7 {[%clk 0:02:59.9]} 6. d3 {[%clk 0:03:01.9]} 6... d6 {[%clk 0:03:00]} 7.
c3 {[%clk 0:03:00.2]} 7... O-O {[%clk 0:03:00.3]} 8. h3 {[%clk 0:03:00]} 8...
Re8 {[%clk 0:02:59.8]} 9. Re1 {[%clk 0:02:57.7]} 9... b5 {[%clk 0:02:58.9]} 10.
Bc2 {[%clk 0:02:50.4]} 10... h6 {[%clk 0:02:56]} 11. Nbd2 {[%clk 0:02:49]} 11...
Bf8 {[%clk 0:02:56]} 12. d4 {[%clk 0:02:47.5]} 12... Bb7 {[%clk 0:02:43.5]} 13.
a4 {[%clk 0:02:47]} 13... exd4 {[%clk 0:02:32.5]} 14. cxd4 {[%clk 0:02:47.1]}
14... Nb4 {[%clk 0:02:33]} 15. Bb1 {[%clk 0:02:47.6]} 15... c5 {[%clk
0:02:33.2]} 16. d5 {[%clk 0:02:48.2]} 16... Nd7 {[%clk 0:02:33.6]} 17. Ra3
{[%clk 0:02:46.4]} 17... c4 {[%clk 0:02:27.6]} 18. Ree3 {[%clk 0:02:44.7]} 18...
Nc5 {[%clk 0:02:26.2]} 19. axb5 {[%clk 0:02:40.3]} 19... axb5 {[%clk 0:02:26]}
20. b3 {[%clk 0:02:41]} 20... c3 {[%clk 0:02:21.9]} 21. Rxc3 {[%clk 0:02:39.3]}
21... f5 {[%clk 0:02:22.3]} 22. Nd4 {[%clk 0:02:03.3]} 22... fxe4 {[%clk
0:01:46.7]} 23. Rxa8 {[%clk 0:02:02.3]} 23... Bxa8 {[%clk 0:01:42.1]} 24. Rg3
{[%clk 0:02:01.4]} 24... Bxd5 {[%clk 0:01:28.7]} 25. Nf5 {[%clk 0:01:39.8]}
25... Qf6 {[%clk 0:01:21.1]} 26. Qh5 {[%clk 0:01:39.6]} 26... Re5 {[%clk
0:01:11.1]} 27. Nxh6+ {[%clk 0:01:37.1]} 27... Kh7 {[%clk 0:01:10.3]} 28. Nf5+
{[%clk 0:01:21]} 28... Kg8 {[%clk 0:01:10.2]} 29. Rg5 {[%clk 0:01:20.1]} 29...
Rxf5 {[%clk 0:00:34.7]} 30. Rxf5 {[%clk 0:01:17.4]} 30... Qc3 {[%clk 0:00:35.2]}
31. Qe8 {[%clk 0:00:53.6]} 31... Qxc1+ {[%clk 0:00:28.1]} 32. Nf1 {[%clk
0:00:54]} 32... Ne6 {[%clk 0:00:11.9]} 33. Qf7+ {[%clk 0:00:52.9]} 1-0

[Event "Early-Titled-Tuesday-Blitz-March-05-2024"]
[Site "Chess.com"]
[Date "2024.03.05"]
[Round "5"]
[White "Felix-Rose"]
[Black "GilbertoHernandezAmura"]
[Result "0-1"]
[WhiteElo "2294"]
[BlackElo "2439"]
[TimeControl "180+1"]
[EndTime "8:57:10 PST"]
[Termination "GilbertoHernandezAmura won on time"]

1. e4 {[%clk 0:03:00.5]} 1... d5 {[%clk 0:02:56.3]} 2. exd5 {[%clk 0:03:00.9]}
2... Nf6 {[%clk 0:02:56.9]} 3. d4 {[%clk 0:03:01.1]} 3... Nxd5 {[%clk
0:02:56.7]} 4. Nf3 {[%clk 0:03:01]} 4... Bg4 {[%clk 0:02:54.8]} 5. c4 {[%clk
0:03:00.3]} 5... Nf6 {[%clk 0:02:54.6]} 6. h3 {[%clk 0:02:57.1]} 6... Bxf3
{[%clk 0:02:53.7]} 7. Qxf3 {[%clk 0:02:57.1]} 7... c6 {[%clk 0:02:54.4]} 8. Be3
{[%clk 0:02:43.9]} 8... e6 {[%clk 0:02:52.8]} 9. Nc3 {[%clk 0:02:43.2]} 9...
Nbd7 {[%clk 0:02:42.3]} 10. Bd3 {[%clk 0:02:41.3]} 10... Be7 {[%clk 0:02:39.9]}
11. O-O {[%clk 0:02:40.5]} 11... O-O {[%clk 0:02:39.9]} 12. Rfe1 {[%clk
0:02:40.3]} 12... Rc8 {[%clk 0:02:32.9]} 13. Rad1 {[%clk 0:02:40.1]} 13... Qa5
{[%clk 0:02:32.1]} 14. Bb1 {[%clk 0:02:22]} 14... Qb4 {[%clk 0:02:27.4]} 15. Qe2
{[%clk 0:02:16.3]} 15... Nb6 {[%clk 0:02:24.5]} 16. Bd3 {[%clk 0:02:11.1]} 16...
c5 {[%clk 0:02:16]} 17. d5 {[%clk 0:01:28.6]} 17... exd5 {[%clk 0:01:40.3]} 18.
Nxd5 {[%clk 0:01:28.2]} 18... Nbxd5 {[%clk 0:01:34.1]} 19. cxd5 {[%clk
0:01:29.1]} 19... Bd6 {[%clk 0:01:30.4]} 20. Bg5 {[%clk 0:01:15.7]} 20... Rfe8
{[%clk 0:01:10.9]} 21. Qf1 {[%clk 0:00:27.8]} 21... h6 {[%clk 0:01:06.3]} 22.
Bxf6 {[%clk 0:00:19.1]} 22... Qf4 {[%clk 0:01:06.5]} 23. Rxe8+ {[%clk
0:00:15.8]} 23... Rxe8 {[%clk 0:01:06.1]} 24. g3 {[%clk 0:00:16.2]} 24... Qxf6
{[%clk 0:01:05.8]} 25. Kg2 {[%clk 0:00:14.8]} 25... Qxb2 {[%clk 0:01:03.4]} 26.
Rb1 {[%clk 0:00:14.3]} 26... Qd4 {[%clk 0:01:03.6]} 27. Rxb7 {[%clk 0:00:12.9]}
27... Qxd5+ {[%clk 0:01:03.8]} 28. Kh2 {[%clk 0:00:01.3]} 28... Qxb7 {[%clk
0:01:03.4]} 0-1

[Event "Early-Titled-Tuesday-Blitz-March-05-2024"]
[Site "Chess.com"]
[Date "2024.03.05"]
[Round "5"]
[White "Pasmendjambvirgulptipon98"]
[Black "volodja49"]
[Result "0-1"]
[WhiteElo "2325"]
[BlackElo "2598"]
[TimeControl "180+1"]
[EndTime "8:57:11 PST"]
[Termination "volodja49 won by resignation"]

1. e4 {[%clk 0:02:58.8]} 1... e6 {[%clk 0:02:59.6]} 2. d4 {[%clk 0:02:57.8]}
2... d5 {[%clk 0:03:00.5]} 3. exd5 {[%clk 0:02:58.3]} 3... exd5 {[%clk
0:03:00.3]} 4. Bd3 {[%clk 0:02:59]} 4... c6 {[%clk 0:03:00.1]} 5. Qf3 {[%clk
0:02:58.8]} 5... Qf6 {[%clk 0:02:57.5]} 6. Qxf6 {[%clk 0:02:54.1]} 6... Nxf6
{[%clk 0:02:58.4]} 7. Bf4 {[%clk 0:02:53.8]} 7... Be7 {[%clk 0:02:56.1]} 8. Nc3
{[%clk 0:02:45.7]} 8... O-O {[%clk 0:02:56.4]} 9. Nf3 {[%clk 0:02:39.6]} 9...
Re8 {[%clk 0:02:56.1]} 10. O-O {[%clk 0:02:39]} 10... Nbd7 {[%clk 0:02:56.6]}
11. Rfe1 {[%clk 0:02:38.6]} 11... Nf8 {[%clk 0:02:56.8]} 12. h3 {[%clk
0:02:25.8]} 12... Ng6 {[%clk 0:02:50.6]} 13. Bh2 {[%clk 0:02:21]} 13... Bd7
{[%clk 0:02:48.1]} 14. Re2 {[%clk 0:02:19.1]} 14... Bf8 {[%clk 0:02:47.6]} 15.
Rae1 {[%clk 0:02:18.2]} 15... Rxe2 {[%clk 0:02:48.3]} 16. Rxe2 {[%clk
0:02:15.8]} 16... Re8 {[%clk 0:02:49.2]} 17. Rxe8 {[%clk 0:02:11.8]} 17... Bxe8
{[%clk 0:02:50.1]} 18. Ne5 {[%clk 0:02:05.8]} 18... Nxe5 {[%clk 0:02:45.9]} 19.
Bxe5 {[%clk 0:02:06.7]} 19... Nd7 {[%clk 0:02:46.1]} 20. Bf4 {[%clk 0:01:58.4]}
20... Bb4 {[%clk 0:02:44.8]} 21. Ne2 {[%clk 0:01:48.3]} 21... h6 {[%clk
0:02:43.3]} 22. c3 {[%clk 0:01:47.9]} 22... Be7 {[%clk 0:02:42.6]} 23. Ng3
{[%clk 0:01:46.7]} 23... Kf8 {[%clk 0:02:43.5]} 24. Nf5 {[%clk 0:01:46.4]} 24...
Nf6 {[%clk 0:02:32.7]} 25. Be5 {[%clk 0:01:40.5]} 25... Bd7 {[%clk 0:02:26.9]}
26. Nxe7 {[%clk 0:01:37.6]} 26... Kxe7 {[%clk 0:02:27.8]} 27. Bxf6+ {[%clk
0:01:38.2]} 27... Kxf6 {[%clk 0:02:26.6]} 28. Kh2 {[%clk 0:01:16]} 28... Bf5
{[%clk 0:02:25.2]} 29. Be2 {[%clk 0:01:15.9]} 29... Ke6 {[%clk 0:02:23.6]} 30.
Kg3 {[%clk 0:01:07.7]} 30... g5 {[%clk 0:02:22.6]} 31. h4 {[%clk 0:01:05.2]}
31... b6 {[%clk 0:02:12.2]} 32. f4 {[%clk 0:00:50.8]} 32... f6 {[%clk
0:02:04.1]} 33. Bg4 {[%clk 0:00:32.2]} 33... Bxg4 {[%clk 0:01:57.9]} 34. Kxg4
{[%clk 0:00:33.1]} 34... gxh4 {[%clk 0:01:58.6]} 35. f5+ {[%clk 0:00:31.8]}
35... Kf7 {[%clk 0:01:56.1]} 36. Kxh4 {[%clk 0:00:29.6]} 36... Kg7 {[%clk
0:01:55.7]} 37. g4 {[%clk 0:00:27.4]} 37... c5 {[%clk 0:01:54]} 38. dxc5 {[%clk
0:00:17.7]} 38... bxc5 {[%clk 0:01:53.5]} 39. Kg3 {[%clk 0:00:18.6]} 39... Kf7
{[%clk 0:01:50.7]} 40. Kf4 {[%clk 0:00:15.3]} 40... Ke7 {[%clk 0:01:50.4]} 41.
b4 {[%clk 0:00:14.5]} 41... Kd6 {[%clk 0:01:50.3]} 42. a4 {[%clk 0:00:07.8]}
42... Kc6 {[%clk 0:01:44.8]} 43. b5+ {[%clk 0:00:02.8]} 43... Kb6 {[%clk
0:01:43.6]} 44. Kg3 {[%clk 0:00:01.4]} 44... Ka5 {[%clk 0:01:40]} 45. Kh4 {[%clk
0:00:02]} 45... d4 {[%clk 0:01:38.9]} 46. cxd4 {[%clk 0:00:01.9]} 46... cxd4
{[%clk 0:01:39.8]} 47. Kg3 {[%clk 0:00:02.2]} 47... Kxa4 {[%clk 0:01:39]} 48.
Kf4 {[%clk 0:00:03.1]} 48... Kxb5 {[%clk 0:01:38.8]} 49. Ke4 {[%clk 0:00:03.6]}
49... Kc4 {[%clk 0:01:38.9]} 0-1

[Event "Early-Titled-Tuesday-Blitz-March-05-2024"]
[Site "Chess.com"]
[Date "2024.03.05"]
[Round "5"]
[White "Szachulec75"]
[Black "ChempionBg"]
[Result "1-0"]
[WhiteElo "2230"]
[BlackElo "2385"]
[TimeControl "180+1"]
[EndTime "8:57:12 PST"]
[Termination "Szachulec75 won on time"]

1. Nf3 {[%clk 0:03:00.9]} 1... Nf6 {[%clk 0:02:58.8]} 2. g3 {[%clk 0:02:59]}
2... b6 {[%clk 0:02:58]} 3. Bg2 {[%clk 0:02:59.5]} 3... Bb7 {[%clk 0:02:58.6]}
4. d3 {[%clk 0:02:59.8]} 4... g6 {[%clk 0:02:56.7]} 5. O-O {[%clk 0:03:00.1]}
5... Bg7 {[%clk 0:02:56.7]} 6. e4 {[%clk 0:03:00.4]} 6... c5 {[%clk 0:02:56.6]}
7. Nc3 {[%clk 0:03:00]} 7... O-O {[%clk 0:02:55.7]} 8. Bg5 {[%clk 0:03:00.3]}
8... d6 {[%clk 0:02:44.5]} 9. Qd2 {[%clk 0:02:59.1]} 9... Re8 {[%clk 0:02:40.7]}
10. Bh6 {[%clk 0:02:57.7]} 10... Bh8 {[%clk 0:02:39.5]} 11. h3 {[%clk
0:02:57.7]} 11... Nc6 {[%clk 0:02:37.6]} 12. a3 {[%clk 0:02:56.9]} 12... Rc8
{[%clk 0:02:36.1]} 13. Nh4 {[%clk 0:02:53.5]} 13... Nd4 {[%clk 0:02:32.9]} 14.
Nd1 {[%clk 0:02:52.9]} 14... d5 {[%clk 0:02:28.4]} 15. e5 {[%clk 0:02:48.9]}
15... Nd7 {[%clk 0:02:28.1]} 16. f4 {[%clk 0:02:49]} 16... e6 {[%clk 0:02:20]}
17. Ne3 {[%clk 0:02:32.2]} 17... b5 {[%clk 0:02:06.9]} 18. Rae1 {[%clk
0:02:32.1]} 18... Qb6 {[%clk 0:02:02]} 19. Kh2 {[%clk 0:02:22.7]} 19... c4
{[%clk 0:01:54.5]} 20. c3 {[%clk 0:02:18.6]} 20... Nb3 {[%clk 0:01:48.1]} 21.
Qe2 {[%clk 0:02:18.7]} 21... cxd3 {[%clk 0:01:43.8]} 22. Qxd3 {[%clk 0:02:18.4]}
22... Ndc5 {[%clk 0:01:44.4]} 23. Qe2 {[%clk 0:02:11.6]} 23... d4 {[%clk
0:01:42.7]} 24. cxd4 {[%clk 0:01:57.7]} 24... Nxd4 {[%clk 0:01:41.4]} 25. Qg4
{[%clk 0:01:54.1]} 25... Nd3 {[%clk 0:01:30.4]} 26. Rb1 {[%clk 0:01:46.4]} 26...
Bxg2 {[%clk 0:01:16.9]} 27. Nexg2 {[%clk 0:01:45.3]} 27... Rc2 {[%clk
0:01:13.9]} 28. Bg5 {[%clk 0:01:24.9]} 28... Nf2 {[%clk 0:01:04.1]} 29. Rxf2
{[%clk 0:01:17.3]} 29... Rxf2 {[%clk 0:01:03.9]} 30. Bf6 {[%clk 0:01:16.8]}
30... Qc6 {[%clk 0:00:49.7]} 31. Rg1 {[%clk 0:01:15.3]} 31... Nf3+ {[%clk
0:00:35.6]} 32. Nxf3 {[%clk 0:01:13.9]} 32... Qxf3 {[%clk 0:00:35.5]} 33. Qh4
{[%clk 0:01:11.6]} 33... Rc8 {[%clk 0:00:28.7]} 34. Bxh8 {[%clk 0:01:10]} 1-0

[Event "Early-Titled-Tuesday-Blitz-March-05-2024"]
[Site "Chess.com"]
[Date "2024.03.05"]
[Round "5"]
[White "Leonid_Starozhilov"]
[Black "tandaleo"]
[Result "1-0"]
[WhiteElo "2714"]
[BlackElo "2478"]
[TimeControl "180+1"]
[EndTime "8:57:20 PST"]
[Termination "Leonid_Starozhilov won by resignation"]

1. e4 {[%clk 0:03:00.9]} 1... e5 {[%clk 0:02:58.6]} 2. Nf3 {[%clk 0:03:01.2]}
2... Nc6 {[%clk 0:02:58.6]} 3. Nc3 {[%clk 0:03:01.9]} 3... Nf6 {[%clk
0:02:58.5]} 4. Bb5 {[%clk 0:03:02.4]} 4... Bd6 {[%clk 0:02:57]} 5. Bxc6 {[%clk
0:03:01.3]} 5... dxc6 {[%clk 0:02:56.9]} 6. d3 {[%clk 0:03:02.2]} 6... O-O
{[%clk 0:02:55]} 7. h3 {[%clk 0:03:02.9]} 7... Nd7 {[%clk 0:02:54.9]} 8. Be3
{[%clk 0:03:03]} 8... c5 {[%clk 0:02:52.8]} 9. O-O {[%clk 0:03:02.1]} 9... f6
{[%clk 0:02:48.6]} 10. Nd2 {[%clk 0:03:01.5]} 10... Re8 {[%clk 0:02:43.7]} 11.
Nc4 {[%clk 0:03:01.2]} 11... Nf8 {[%clk 0:02:41.1]} 12. f4 {[%clk 0:02:53.5]}
12... exf4 {[%clk 0:02:20.2]} 13. Bxf4 {[%clk 0:02:54.4]} 13... Bxf4 {[%clk
0:02:19.9]} 14. Rxf4 {[%clk 0:02:54.1]} 14... Be6 {[%clk 0:02:16.5]} 15. Ne3
{[%clk 0:01:56.5]} 15... Qd4 {[%clk 0:02:09.5]} 16. Qd2 {[%clk 0:01:49.1]} 16...
Ng6 {[%clk 0:02:05.9]} 17. Rf2 {[%clk 0:01:46.8]} 17... Rad8 {[%clk 0:01:50.2]}
18. b3 {[%clk 0:01:38]} 18... Ne5 {[%clk 0:01:30.5]} 19. Raf1 {[%clk 0:01:36.1]}
19... c4 {[%clk 0:01:23.6]} 20. bxc4 {[%clk 0:01:32.1]} 20... Bxc4 {[%clk
0:01:23.3]} 21. Ncd5 {[%clk 0:01:22.5]} 21... Bxd5 {[%clk 0:01:19.9]} 22. Nxd5
{[%clk 0:01:22.1]} 22... c6 {[%clk 0:01:13.7]} 23. Ne3 {[%clk 0:01:18.7]} 23...
Ng6 {[%clk 0:00:36.5]} 24. Nf5 {[%clk 0:01:16.4]} 24... Qc5 {[%clk 0:00:30.6]}
25. Qc1 {[%clk 0:01:07]} 25... b5 {[%clk 0:00:22.8]} 26. h4 {[%clk 0:01:06]}
26... Ne5 {[%clk 0:00:17]} 27. Qf4 {[%clk 0:01:05.8]} 27... Rd7 {[%clk
0:00:07.3]} 28. Qg3 {[%clk 0:01:05.5]} 28... Red8 {[%clk 0:00:07]} 29. Kh1
{[%clk 0:00:56.4]} 29... Qf8 {[%clk 0:00:06.4]} 30. Nh6+ {[%clk 0:00:51.1]}
30... Kh8 {[%clk 0:00:06.3]} 31. Qxe5 {[%clk 0:00:51.8]} 31... gxh6 {[%clk
0:00:05.4]} 32. Rxf6 {[%clk 0:00:50.9]} 32... Qg7 {[%clk 0:00:05.3]} 33. Rf8+
{[%clk 0:00:51.5]} 1-0

[Event "Early-Titled-Tuesday-Blitz-March-05-2024"]
[Site "Chess.com"]
[Date "2024.03.05"]
[Round "5"]
[White "Qvalda"]
[Black "NowInChess"]
[Result "1-0"]
[WhiteElo "2431"]
[BlackElo "2252"]
[TimeControl "180+1"]
[EndTime "8:57:20 PST"]
[Termination "Qvalda won on time"]

1. d4 {[%clk 0:03:00.9]} 1... Nf6 {[%clk 0:02:31]} 2. c4 {[%clk 0:03:00.4]} 2...
c5 {[%clk 0:02:29.3]} 3. d5 {[%clk 0:03:00.5]} 3... b5 {[%clk 0:02:29.5]} 4.
cxb5 {[%clk 0:03:00.2]} 4... a6 {[%clk 0:02:30.2]} 5. e3 {[%clk 0:03:00.6]} 5...
e6 {[%clk 0:02:24.8]} 6. Nc3 {[%clk 0:02:55.1]} 6... Bb7 {[%clk 0:02:16.8]} 7.
dxe6 {[%clk 0:02:53.3]} 7... fxe6 {[%clk 0:02:16.3]} 8. Nf3 {[%clk 0:02:52.3]}
8... d5 {[%clk 0:02:15.4]} 9. bxa6 {[%clk 0:02:52.1]} 9... Nxa6 {[%clk
0:02:09.3]} 10. Bb5+ {[%clk 0:02:51.9]} 10... Nd7 {[%clk 0:01:49.2]} 11. O-O
{[%clk 0:02:51.1]} 11... Bd6 {[%clk 0:01:42.2]} 12. e4 {[%clk 0:02:46.3]} 12...
d4 {[%clk 0:01:37.6]} 13. e5 {[%clk 0:02:21.5]} 13... Bc7 {[%clk 0:01:02.6]} 14.
Nxd4 {[%clk 0:01:46.9]} 14... cxd4 {[%clk 0:00:47.3]} 15. Qxd4 {[%clk
0:01:47.8]} 15... Bb6 {[%clk 0:00:38.4]} 16. Bxd7+ {[%clk 0:01:38.9]} 16... Qxd7
{[%clk 0:00:19.4]} 17. Qxb6 {[%clk 0:01:38.8]} 17... O-O {[%clk 0:00:19.5]} 18.
Be3 {[%clk 0:01:12]} 18... Rac8 {[%clk 0:00:17.7]} 19. Rad1 {[%clk 0:01:10.2]}
19... Qe7 {[%clk 0:00:17.6]} 20. Rd6 {[%clk 0:01:05]} 20... Rxc3 {[%clk
0:00:11.5]} 21. bxc3 {[%clk 0:01:00.7]} 21... Bd5 {[%clk 0:00:10.6]} 22. Rxd5
{[%clk 0:00:57.9]} 22... exd5 {[%clk 0:00:10.3]} 23. Qxa6 {[%clk 0:00:58.1]}
23... Qxe5 {[%clk 0:00:10.2]} 24. Qd3 {[%clk 0:00:57.1]} 24... Ra8 {[%clk
0:00:03]} 25. Qd4 {[%clk 0:00:56.6]} 25... Qe6 {[%clk 0:00:02.4]} 26. a4 {[%clk
0:00:54.3]} 26... Qc6 {[%clk 0:00:01.6]} 27. Ra1 {[%clk 0:00:52.2]} 27... Ra5
{[%clk 0:00:01.7]} 28. h3 {[%clk 0:00:45.9]} 28... h6 {[%clk 0:00:01.3]} 29. Qb4
{[%clk 0:00:45.3]} 29... Ra6 {[%clk 0:00:01.1]} 30. a5 {[%clk 0:00:45.1]} 1-0

[Event "Early-Titled-Tuesday-Blitz-March-05-2024"]
[Site "Chess.com"]
[Date "2024.03.05"]
[Round "5"]
[White "baki83"]
[Black "Herman-NY"]
[Result "1/2-1/2"]
[WhiteElo "2793"]
[BlackElo "2527"]
[TimeControl "180+1"]
[EndTime "8:57:25 PST"]
[Termination "Game drawn by repetition"]

1. e4 {[%clk 0:03:00.9]} 1... e5 {[%clk 0:03:00]} 2. Nf3 {[%clk 0:03:00.8]} 2...
Nc6 {[%clk 0:03:00.7]} 3. Bb5 {[%clk 0:03:00.6]} 3... a6 {[%clk 0:03:00.8]} 4.
Ba4 {[%clk 0:03:00.7]} 4... Nf6 {[%clk 0:03:01.2]} 5. O-O {[%clk 0:03:00.9]}
5... b5 {[%clk 0:03:00.8]} 6. Bb3 {[%clk 0:03:00.9]} 6... Bc5 {[%clk 0:03:01.5]}
7. c3 {[%clk 0:03:00.4]} 7... d6 {[%clk 0:03:02.1]} 8. d4 {[%clk 0:03:00.7]}
8... Bb6 {[%clk 0:03:02.2]} 9. a4 {[%clk 0:03:00.9]} 9... Bb7 {[%clk 0:03:01.9]}
10. Re1 {[%clk 0:02:59.8]} 10... h6 {[%clk 0:02:58.5]} 11. h3 {[%clk 0:02:55]}
11... O-O {[%clk 0:02:56.2]} 12. Be3 {[%clk 0:02:55.1]} 12... exd4 {[%clk
0:01:33.8]} 13. cxd4 {[%clk 0:02:51.6]} 13... Na5 {[%clk 0:01:34]} 14. d5 {[%clk
0:02:45.2]} 14... Bxe3 {[%clk 0:01:03.1]} 15. Rxe3 {[%clk 0:02:44.5]} 15... c5
{[%clk 0:00:58.4]} 16. dxc6 {[%clk 0:02:39.8]} 16... Bxc6 {[%clk 0:00:55]} 17.
Nc3 {[%clk 0:02:27.2]} 17... Re8 {[%clk 0:00:37.5]} 18. Nd4 {[%clk 0:02:17.9]}
18... b4 {[%clk 0:00:24.2]} 19. Nxc6 {[%clk 0:02:16.1]} 19... Nxc6 {[%clk
0:00:24.5]} 20. Nd5 {[%clk 0:02:16.1]} 20... Nxe4 {[%clk 0:00:11.2]} 21. Rc1
{[%clk 0:01:59.3]} 21... Rc8 {[%clk 0:00:05.7]} 22. Rc4 {[%clk 0:01:57]} 22...
Nc5 {[%clk 0:00:05.6]} 23. Rg4 {[%clk 0:01:49.5]} 23... Rxe3 {[%clk 0:00:05.4]}
24. Nxe3 {[%clk 0:01:49.3]} 24... Ne5 {[%clk 0:00:05.8]} 25. Rd4 {[%clk
0:01:47.3]} 25... Nxb3 {[%clk 0:00:06.3]} 26. Qxb3 {[%clk 0:01:46.4]} 26... Rc1+
{[%clk 0:00:06.6]} 27. Kh2 {[%clk 0:01:46.7]} 27... Qf6 {[%clk 0:00:05.6]} 28.
Nd5 {[%clk 0:00:39.1]} 28... Qxf2 {[%clk 0:00:04.6]} 29. Rf4 {[%clk 0:00:39.8]}
29... Qg1+ {[%clk 0:00:04.7]} 30. Kg3 {[%clk 0:00:40.1]} 30... Qe1+ {[%clk
0:00:05.3]} 31. Kh2 {[%clk 0:00:39.4]} 31... Qg1+ {[%clk 0:00:05.3]} 32. Kg3
{[%clk 0:00:39.7]} 32... Qe1+ {[%clk 0:00:05.4]} 33. Kh2 {[%clk 0:00:40.1]}
33... Qg1+ {[%clk 0:00:05.7]} 1/2-1/2